fUSD/lending_fUSD_20260315
["ID","MTS","AMOUNT","RATE_DAILY","PERIOD"]
[408409960,1773574238554,-500.0,0.000186,2]
[408409961,1773574238564,-500.0,0.000186,2]
[408409962,1773574238574,-500.0,0.000186,2]
[408409963,1773574238583,-500.0,0.000186,2]
[408409964,1773574238593,-500.0,0.000186,2]
[408409965,1773574238602,-500.0,0.000186,2]
[408409966,1773574238612,-500.0,0.000186,2]
[408409967,1773574238621,-500.0,0.000186,2]
[408409968,1773574238631,-500.0,0.000186,2]
[408409969,1773574238640,-500.0,0.000186,2]
[408409970,1773574238649,-500.0,0.000186,2]
[408409971,1773574238658,-500.0,0.000186,2]
[408409972,1773574238667,-604.37882443,0.000186,2]
[408409973,1773574238677,-500.0,0.000186,2]
[408409974,1773574238686,-500.0,0.000186,2]
[408409975,1773574238696,-500.0,0.000186,2]
[408409976,1773574238705,-6453.0,0.00018669,2]
[408409977,1773574238714,-469.87233333,0.00018787,2]
[408409978,1773574238723,-160.0,0.00018788,2]
[408409979,1773574238732,-150.0,0.00019,2]
[408409980,1773574238741,-350.0,0.00019,2]
[408409981,1773574238751,-150.0,0.000198,7]
[408409982,1773574238761,-304.0,0.00020536,2]
[408409983,1773574238770,-400.0,0.00021,2]
[408409984,1773574238780,-500.0,0.00021233,2]
[408409985,1773574238792,-7935.88418224,0.0002162,2]
[408409986,1773574238802,-7108.49,0.00021621,2]
[408409987,1773574238812,-3866.20841252,0.00021741,2]
[408409988,1773574238821,-846.0009,0.00021741,2]
[408409989,1773574238830,-518.0,0.00021846,6]
[408409990,1773574238840,-5000.0,0.00021918,2]
[408409991,1773574238849,-156.95,0.00021918,2]
[408409992,1773574238858,-308.15210792,0.00022276,2]
[408409993,1773574238868,-2395.169491,0.00022904,30]
[408409994,1773574238877,-162.811078,0.00022904,30]
[408409995,1773574238887,-260.64028232,0.00022912,2]
[408409996,1773574238897,-500.0,0.00023315,2]
[408409997,1773574238907,-535.39,0.00023564,2]
[408409998,1773574238916,-471.87,0.00023714,2]
[408409999,1773574238930,-344.59,0.00023838,2]
[408410000,1773574238940,-16723.0971258,0.00024077,2]
[408410001,1773574238949,-471.87,0.00024109,2]
[408410002,1773574238957,-471.87,0.00024505,2]
[408410003,1773574238966,-150.0,0.00024658,2]
[408410004,1773574238976,-573.0,0.00024811,2]
[408410005,1773574238985,-573.0,0.00024832,2]
[408410006,1773574238995,-471.87413767,0.000249,2]
[408410007,1773574239004,-469.87233333,0.000249,3]
[408410008,1773574239014,-121363.709799,0.000249,3]
[408410009,1773574239023,-3914.95838061,0.0002499,3]
[408410010,1773574239032,-150.0,0.00025,2]
[408410011,1773574239042,-500.0,0.00025,30]
[408410012,1773574239052,-500.0,0.00025,30]
[408410013,1773574239061,-501.40106128,0.00025,30]
[408410014,1773574239071,-500.0,0.00025,30]
[408410015,1773574239080,-500.0,0.00025,30]
[408410016,1773574239090,-500.0,0.00025,30]
[408410017,1773574239099,-500.0,0.00025,30]
[408410018,1773574239109,-500.0,0.00025,30]
[408410019,1773574239118,-500.0,0.00025,30]
[408410020,1773574239127,-500.0,0.00025,30]
[408410021,1773574239136,-500.0,0.00025,30]
[408410022,1773574239145,-500.0,0.00025,30]
[408410023,1773574239155,-500.0,0.00025,30]
[408410024,1773574239164,-500.0,0.00025,30]
[408410025,1773574239174,-500.0,0.00025,30]
[408410026,1773574239183,-500.0,0.00025,30]
[408410027,1773574239193,-500.0,0.00025,30]
[408410028,1773574239202,-500.0,0.00025,30]
[408410029,1773574239211,-500.0,0.00025,30]
[408410030,1773574239220,-500.0,0.00025,30]
[408410031,1773574239229,-500.0,0.00025,30]
[408410032,1773574239238,-500.0,0.00025,30]
[408410033,1773574239247,-500.0,0.00025,30]
[408410034,1773574239256,-500.0,0.00025,30]
[408410035,1773574239266,-500.0,0.00025,30]
[408410036,1773574239275,-500.0,0.00025,30]
[408410037,1773574239284,-503.02078764,0.00025,30]
[408410038,1773574239293,-500.0,0.00025,30]
[408410039,1773574239302,-469.87233333,0.00025,30]
[408410040,1773574239312,-576.0,0.00025117,2]
[408410041,1773574239322,-573.0,0.00025122,7]
[408410043,1773574239332,-3914.95838061,0.00025129,3]
[408410045,1773574239347,-3866.20841252,0.00025139,2]
[408410046,1773574239357,-846.0009,0.00025139,2]
[408410047,1773574239367,-153.56106977,0.00025209,2]
[408410048,1773574239376,-576.0,0.00025225,2]
[408410049,1773574239387,-156.95,0.00025342,2]
[408410050,1773574239396,-573.0,0.00025402,7]
[408410051,1773574239405,-576.0,0.00025463,2]
[408410052,1773574239415,-573.0,0.000255,2]
[408410053,1773574239425,-573.0,0.00025593,7]
[408410054,1773574239435,-469.87233333,0.000256,3]
[408410055,1773574239444,-573.0,0.00025682,2]
[408410056,1773574239452,-3914.95838061,0.00025735,3]
[408410057,1773574239461,-573.0,0.00025745,2]
[408410058,1773574239471,-573.0,0.00025796,2]
[408410059,1773574239480,-195.11,0.00025872,2]
[408410060,1773574239489,-150.0,0.0002589,2]
[408410061,1773574239498,-573.0,0.00025958,7]
[408410062,1773574239507,-2000.0,0.00026,2]
[408410063,1773574239516,-573.0,0.00026375,2]
[408410064,1773574239525,-573.0,0.00026379,2]
[408410065,1773574239534,-3914.95838061,0.00026385,3]
[408410066,1773574239544,-5497.54,0.00026395,2]
[408410067,1773574239553,-469.87233333,0.000264,3]
[408410068,1773574239563,-573.0,0.00026452,2]
[408410069,1773574239572,-577.0,0.00026547,2]
[408410070,1773574239581,-7935.88418224,0.00026656,2]
[408410071,1773574239590,-3914.95838061,0.00026686,3]
[408410072,1773574239599,-518.0,0.00026692,10]
[408410073,1773574239608,-576.0,0.00026705,7]
[408410074,1773574239616,-303.0,0.00026767,2]
[408410075,1773574239629,-573.0,0.00026884,2]
[408410076,1773574239638,-573.0,0.00026896,2]
[408410077,1773574239648,-1600.0,0.000269,9]
[408410078,1773574239656,-150.0,0.00027185,2]
[408410079,1773574239666,-573.0,0.00027227,2]
[408410080,1773574239675,-573.0,0.00027235,2]
[408410081,1773574239684,-272.81263358,0.00027295,2]
[408410082,1773574239693,-573.0,0.00027321,2]
[408410083,1773574239702,-576.0,0.00027327,2]
[408410084,1773574239712,-577.0,0.00027334,7]
[408410085,1773574239721,-3914.95838061,0.00027375,3]
[408410086,1773574239730,-7829.91676122,0.00027385,3]
[408410087,1773574239739,-6314.67429537,0.00027387,3]
[408410088,1773574239755,-5430.20084643,0.00027387,3]
[408410089,1773574239764,-14232.0,0.00027395,10]
[408410090,1773574239774,-443.0,0.00027395,10]
[408410091,1773574239784,-2033.342,0.00027397,2]
[408410092,1773574239793,-300.0,0.00027397,2]
[408410093,1773574239803,-27058.95323628,0.00027397,10]
[408410094,1773574239814,-5188.45676372,0.00027397,10]
[408410095,1773574239823,-2187.03779873,0.00027397,10]
[408410096,1773574239868,-20216.0777674,0.00027397,10]
[408410097,1773574240371,-508.0,0.00027397,10]
[408410106,1773574240478,1800.0,0.00011593,2]
[408410107,1773574240514,1800.0,0.00011593,2]
[408410108,1773574240537,-3961.72443387,0.00027397,10]
[408410109,1773574240547,-22394.03,0.00027397,10]
[408410110,1773574240556,-18661.7,0.00027397,10]
[408410111,1773574240565,-3914.95838061,0.00027403,3]
[408410112,1773574240575,-5000.0,0.00027413,2]
[408410113,1773574240584,-3914.95838061,0.00027493,3]
[408410114,1773574240593,-7829.91676122,0.00027503,3]
[408410115,1773574240602,-250.0,0.00027513,2]
[408410116,1773574240612,-250.0,0.00027513,2]
[408410117,1773574240621,-250.0,0.00027513,2]
[408410118,1773574240630,-250.0,0.00027513,2]
[408410119,1773574240640,-250.0,0.00027513,2]
[408410120,1773574240649,-1500.0,0.00027513,2]
[408410121,1773574240658,-279.33639356,0.00027513,2]
[408410122,1773574240667,-1500.0,0.00027513,2]
[408410123,1773574240676,-1500.0,0.00027513,2]
[408410124,1773574240685,-1500.0,0.00027513,2]
[408410125,1773574240693,-1500.0,0.00027513,2]
[408410126,1773574240702,-151.0,0.00027513,2]
[408410127,1773574240711,-1500.0,0.00027513,2]
[408410128,1773574240720,-1500.0,0.00027513,2]
[408410129,1773574240729,-1500.0,0.00027513,2]
[408410130,1773574240738,-1500.0,0.00027513,2]
[408410131,1773574240748,-1500.0,0.00027513,2]
[408410132,1773574240757,-500.0,0.00027513,2]
[408410133,1773574240768,-1500.0,0.00027513,2]
[408410134,1773574240778,-250.0,0.00027513,2]
[408410135,1773574240787,-500.0,0.00027513,2]
[408410136,1773574240796,-171.86459985,0.00027513,2]
[408410137,1773574240805,-243.57435302,0.00027513,2]
[408410138,1773574240814,-500.0,0.00027513,2]
[408410139,1773574240823,-500.0,0.00027513,2]
[408410140,1773574240833,-500.0,0.00027513,2]
[408410141,1773574240842,-500.0,0.00027513,2]
[408410142,1773574240852,-500.0,0.00027513,2]
[408410143,1773574240861,-500.0,0.00027513,2]
[408410144,1773574240870,-500.0,0.00027513,2]
[408410145,1773574240879,-500.0,0.00027513,2]
[408410146,1773574240888,-500.0,0.00027513,2]
[408410147,1773574241018,-174.61919141,0.00027513,2]
[408410148,1773574241028,-200.0,0.00027513,2]
[408410149,1773574241037,-500.0,0.00027513,2]
[408410150,1773574241046,-500.0,0.00027513,2]
[408410151,1773574241055,-500.0,0.00027513,2]
[408410152,1773574241064,-500.0,0.00027513,2]
[408410153,1773574241073,-500.0,0.00027513,2]
[408410154,1773574241082,-500.0,0.00027513,2]
[408410155,1773574241091,-500.0,0.00027513,2]
[408410156,1773574241101,-500.0,0.00027513,2]
[408410157,1773574241111,-500.0,0.00027513,2]
[408410158,1773574241119,-500.0,0.00027513,2]
[408410159,1773574241129,-500.0,0.00027513,2]
[408410160,1773574241138,-151.0,0.00027568,2]
[408410161,1773574241147,-151.0,0.00027623,2]
[408410162,1773574241156,-151.0,0.00027678,2]
[408410163,1773574241165,-151.0,0.00027733,2]
[408410164,1773574241174,-1343.0,0.00027741,2]
[408410165,1773574241182,-620.0,0.00027741,2]
[408410166,1773574241191,-151.0,0.00027788,2]
[408410167,1773574241200,-151.0,0.00027843,2]
[408410168,1773574241209,-3914.95838061,0.00027878,3]
[408410169,1773574241219,-151.0,0.00027898,2]
[408410170,1773574241227,-1250.18,0.00027898,2]
[408410171,1773574241236,-151.0,0.00027953,2]
[408410172,1773574241245,-469.87233333,0.00028,10]
[408410173,1773574241255,-151.0,0.00028008,2]
[408410174,1773574241264,-3914.95838061,0.00028053,3]
[408410175,1773574241272,-3914.95838061,0.00028059,3]
[408410176,1773574241281,-181.08010149,0.00028061,2]
[408410177,1773574241290,-205.95595585,0.00028061,2]
[408410178,1773574241301,-151.0,0.00028063,2]
[408410179,1773574241311,-1284.339,0.00028069,2]
[408410180,1773574241320,-923.0,0.00028069,2]
[408410181,1773574241331,-1350.051,0.00028069,2]
[408410182,1773574241345,-3866.20841252,0.00028537,2]
[408410183,1773574241355,-846.0009,0.00028537,2]
[408410184,1773574241365,-23506.0,0.000286,2]
[408410185,1773574241375,-156.95,0.00028767,2]
[408410186,1773574241387,-158.72,0.00028767,91]
[408410187,1773574241396,-469.87233333,0.000288,10]
[408410188,1773574241406,-3914.95838061,0.00028869,3]
[408410189,1773574241418,-5533.0,0.000291,3]
[408410190,1773574241427,-278.97,0.00029268,2]
[408410191,1773574241436,-152.0,0.00029666,3]
[408410192,1773574241445,-2000.0,0.000297,2]
[408410193,1773574241454,-5533.0,0.000297,5]
[408410194,1773574241463,-3914.95838061,0.0002979,3]
[408410195,1773574241472,-3008.00828535,0.00030482,52]
[408410196,1773574241483,-2754.94014576,0.0003049,52]
[408410197,1773574241492,-500.0,0.0003063,2]
[408410198,1773574241503,-272.81263352,0.00030668,2]
[408410199,1773574241514,-1343.0,0.00030741,2]
[408410200,1773574241524,-195.10725217,0.00030744,2]
[408410201,1773574241534,-152.0,0.00030815,4]
[408410202,1773574241544,-1260.0,0.00031069,2]
[408410203,1773574241555,-923.0,0.00031069,2]
[408410204,1773574241564,-518.0,0.00031538,15]
[408410205,1773574241573,-7935.88418224,0.00031692,2]
[408410206,1773574241582,-3866.20841252,0.00031935,2]
[408410207,1773574241591,-846.0009,0.00031935,2]
[408410208,1773574241600,-152.0,0.00031963,5]
[408410209,1773574241609,-156.95,0.00032192,2]
[408410210,1773574241618,-278.97,0.00032692,2]
[408410211,1773574241627,-12691.02240842,0.00032876,120]
[408410212,1773574241636,-159.64861887,0.00032877,2]
[408410213,1773574241645,-469.87233333,0.000329,120]
[408410214,1773574241655,-1375.84,0.000329,30]
[408410215,1773574241665,-1404.44,0.000329,14]
[408410216,1773574241674,-152.0,0.00033111,6]
[408410217,1773574241683,-500.0,0.00033288,2]
[408410218,1773574241693,-500.0,0.00033343,2]
[408410219,1773574241702,-500.0,0.00033398,2]
[408410220,1773574241712,-2000.0,0.000334,2]
[408410221,1773574241722,-500.0,0.00033453,2]
[408410222,1773574241731,-500.0,0.00033508,2]
[408410223,1773574241740,-500.0,0.00033563,2]
[408410224,1773574241750,-500.0,0.00033618,2]
[408410225,1773574241759,-500.0,0.00033673,2]
[408410226,1773574241769,-500.0,0.00033728,2]
[408410227,1773574241778,-500.0,0.00033783,2]
[408410228,1773574241787,-2763.0,0.00033834,5]
[408410229,1773574241796,-500.0,0.00033838,2]
[408410230,1773574241805,-272.81263352,0.00034041,2]
[408410231,1773574241815,-1260.0,0.00034069,2]
[408410232,1773574241825,-923.0,0.00034069,2]
[408410233,1773574241834,-1290.51112024,0.00034082,120]
[408410234,1773574241843,-5068.95157167,0.00034082,120]
[408410235,1773574241852,-159.24072742,0.00034082,120]
[408410236,1773574241862,-152.0,0.0003426,7]
[408410237,1773574241871,-1038.83163582,0.00034398,20]
[408410238,1773574241880,-1069.62054236,0.00034398,20]
[408410239,1773574241889,-1093.32435913,0.00034398,20]
[408410240,1773574241898,-1003.05825101,0.00034398,20]
[408410241,1773574241907,-1078.96029059,0.00034398,20]
[408410242,1773574241917,-1061.68026111,0.00034398,20]
[408410243,1773574241926,-1130.95374856,0.00034398,20]
[408410244,1773574241935,-1053.58419048,0.00034398,20]
[408410245,1773574241945,-294.35050138,0.00034402,74]
[408410246,1773574241955,-1500.0,0.00034795,2]
[408410247,1773574241964,-1375.84,0.000348,30]
[408410248,1773574241972,-1404.44,0.000348,14]
[408410249,1773574241982,-200.42058914,0.00035,3]
[408410250,1773574241991,-167.91,0.00035054,2]
[408410251,1773574242000,-167.91,0.00035054,2]
[408410252,1773574242010,-3866.20841252,0.00035332,2]
[408410253,1773574242019,-846.0009,0.00035332,2]
[408410254,1773574242029,-152.0,0.00035408,8]
[408410255,1773574242037,-200.0,0.0003546,7]
[408410256,1773574242047,-345.74478833,0.00035589,120]
[408410257,1773574242056,-2393.336,0.00035616,42]
[408410258,1773574242065,-177.885,0.00035616,42]
[408410259,1773574242075,-156.95,0.00035616,2]
[408410260,1773574242085,-202.0987232,0.00036,5]
[408410261,1773574242094,-1198.06,0.00036,120]
[408410262,1773574242103,-1375.84,0.00036,30]
[408410263,1773574242113,-1404.44,0.00036,14]
[408410264,1773574242123,-278.97,0.00036117,2]
[408410265,1773574242132,-518.0,0.00036385,19]
[408410266,1773574242142,-167.91,0.00036485,2]
[408410267,1773574242151,-167.91,0.00036485,2]
[408410268,1773574242161,-246.1232,0.000365,30]
[408410269,1773574242169,-364.0,0.00036544,2]
[408410270,1773574242178,-152.0,0.00036557,9]
[408410271,1773574242186,-246.1232,0.000367,30]
[408410272,1773574242195,-7935.88418224,0.00036728,2]
[408410273,1773574242204,-2947.75302023,0.00036787,86]
[408410274,1773574242213,-150.80042107,0.00036836,2]
[408410275,1773574242222,-820.4106,0.00036888,7]
[408410276,1773574242232,-246.1232,0.000369,30]
[408410277,1773574242242,-923.0,0.00037069,2]
[408410278,1773574242251,-2000.0,0.000371,2]
[408410279,1773574242260,-246.1232,0.000371,30]
[408410280,1773574242270,-1404.44,0.000371,14]
[408410281,1773574242280,-246.1232,0.000373,30]
[408410282,1773574242288,-272.81263352,0.00037414,2]
[408410283,1773574242297,-246.1232,0.000375,30]
[408410284,1773574242308,-246.1232,0.000377,30]
[408410285,1773574242318,-152.0,0.00037705,10]
[408410286,1773574242327,-246.1232,0.000379,30]
[408410287,1773574242337,-277.0,0.00037939,2]
[408410288,1773574242348,-296.57517427,0.000381,33]
[408410289,1773574242358,-246.1232,0.000381,30]
[408410290,1773574242367,-5497.54,0.00038175,2]
[408410292,1773574242376,-1375.84,0.000382,30]
[408410293,1773574242387,-246.1232,0.000383,30]
[408410294,1773574242396,-246.1232,0.000385,30]
[408410295,1773574242405,-664.61455226,0.00038517,2]
[408410296,1773574242415,-2500.0,0.00038543,2]
[408410297,1773574242424,-2500.0,0.00038543,2]
[408410298,1773574242433,-2500.0,0.00038543,2]
[408410299,1773574242442,-2500.0,0.00038543,2]
[408410300,1773574242451,-500.0,0.00038544,2]
[408410301,1773574242460,-500.0,0.00038544,2]
[408410302,1773574242469,-500.0,0.00038544,2]
[408410303,1773574242477,-500.0,0.00038544,2]
[408410304,1773574242486,-500.0,0.00038544,2]
[408410305,1773574242495,-500.0,0.00038544,2]
[408410306,1773574242505,-500.0,0.00038544,2]
[408410307,1773574242514,-500.0,0.00038544,2]
[408410308,1773574242522,-500.0,0.00038544,2]
[408410309,1773574242531,-500.0,0.00038544,2]
[408410310,1773574242539,-500.0,0.00038544,2]
[408410311,1773574242548,-500.0,0.00038544,2]
[408410312,1773574242557,-500.0,0.00038544,2]
[408410313,1773574242566,-500.0,0.00038544,2]
[408410314,1773574242575,-500.0,0.00038544,2]
[408410315,1773574242584,-500.0,0.00038544,2]
[408410317,1773574242592,-500.0,0.00038544,2]
[408410318,1773574242601,-500.0,0.00038544,2]
[408410319,1773574242609,-500.0,0.00038544,2]
[408410320,1773574242618,-500.0,0.00038544,2]
[408410321,1773574242627,-500.0,0.00038544,2]
[408410322,1773574242636,-500.0,0.00038544,2]
[408410323,1773574242645,-500.0,0.00038544,2]
[408410324,1773574242654,-500.0,0.00038544,2]
[408410325,1773574242663,-500.0,0.00038544,2]
[408410326,1773574242671,-500.0,0.00038544,2]
[408410327,1773574242680,-500.0,0.00038544,2]
[408410328,1773574242689,-500.0,0.00038544,2]
[408410329,1773574242697,-500.0,0.00038544,2]
[408410330,1773574242706,-500.0,0.00038544,2]
[408410331,1773574242715,-500.0,0.00038544,2]
[408410332,1773574242723,-500.0,0.00038544,2]
[408410333,1773574242732,-500.0,0.00038544,2]
[408410334,1773574242741,-500.0,0.00038544,2]
[408410335,1773574242751,-500.0,0.00038544,2]
[408410336,1773574242760,-500.0,0.00038544,2]
[408410337,1773574242769,-500.0,0.00038544,2]
[408410338,1773574242779,-500.0,0.00038544,2]
[408410339,1773574242788,-500.0,0.00038544,2]
[408410340,1773574242797,-500.0,0.00038544,2]
[408410341,1773574242806,-500.0,0.00038544,2]
[408410342,1773574242815,-500.0,0.00038544,2]
[408410343,1773574242824,-500.0,0.00038544,2]
[408410344,1773574242834,-500.0,0.00038544,2]
[408410345,1773574242843,-500.0,0.00038544,2]
[408410346,1773574242852,-500.0,0.00038544,2]
[408410347,1773574242862,-500.0,0.00038544,2]
[408410348,1773574242872,-560.0,0.00038544,2]
[408410349,1773574242881,-500.0,0.000387,120]
[408410350,1773574242890,-246.1232,0.000387,30]
[408410351,1773574242899,-3866.20841252,0.0003873,2]
[408410352,1773574242908,-846.0009,0.0003873,2]
[408410353,1773574242917,-5838.24569422,0.0003878,2]
[408410354,1773574242926,-152.0,0.00038854,11]
[408410355,1773574242935,-246.1232,0.000389,30]
[408410356,1773574242944,-1206.8992,0.0003895,2]
[408410357,1773574242953,-10000.0,0.0003895,2]
[408410358,1773574242963,-156.95,0.00039041,30]
[408410359,1773574242972,-1700.0,0.00039082,14]
[408410360,1773574242981,-2600.0,0.00039082,14]
[408410361,1773574242991,-700.0,0.00039082,14]
[408410362,1773574243000,-246.1232,0.000391,30]
[408410363,1773574243010,-350.0,0.00039145,9]
[408410364,1773574243021,-246.1232,0.000393,30]
[408410365,1773574243031,-278.97,0.00039542,2]
[408410366,1773574243040,-246.1232,0.000397,30]
[408410367,1773574243049,-1527.99559368,0.00039753,2]
[408410368,1773574243059,-10000.02,0.000399,2]
[408410369,1773574243068,-50000.05,0.000399,2]
[408410370,1773574243078,-1000.0,0.000399,2]
[408410371,1773574243089,-246.1232,0.000399,30]
[408410372,1773574243099,-1700.0,0.00039904,14]
[408410373,1773574243109,-2600.0,0.00039904,14]
[408410374,1773574243118,-700.0,0.00039904,14]
[408410375,1773574243131,-206.02,0.0004,120]
[408410376,1773574243140,-940.0,0.0004,2]
[408410377,1773574243149,-161.0,0.0004,120]
[408410378,1773574243158,-165.0,0.0004,120]
[408410379,1773574243167,-569.84805756,0.0004,4]
[408410380,1773574243177,-151.22,0.0004,2]
[408410381,1773574243187,-151.22,0.0004,2]
[408410382,1773574243197,-151.22,0.0004,2]
[408410383,1773574243207,-151.22,0.0004,2]
[408410384,1773574243217,-151.22,0.0004,2]
[408410385,1773574243227,-151.22,0.0004,2]
[408410386,1773574243236,-151.22,0.0004,2]
[408410387,1773574243245,-151.22,0.0004,2]
[408410388,1773574243257,-151.22,0.0004,2]
[408410389,1773574243266,-151.22,0.0004,2]
[408410391,1773574243276,-151.22,0.0004,2]
[408410393,1773574243285,-151.22,0.0004,2]
[408410395,1773574243294,-151.22,0.0004,2]
[408410397,1773574243303,-151.22,0.0004,2]
[408410399,1773574243313,-151.22,0.0004,2]
[408410401,1773574243321,-151.22,0.0004,2]
[408410403,1773574243330,-151.22,0.0004,2]
[408410405,1773574243342,-151.22,0.0004,2]
[408410407,1773574243351,-151.22,0.0004,2]
[408410408,1773574243361,-151.22,0.0004,2]
[408410410,1773574243370,-151.22,0.0004,2]
[408410412,1773574243382,-151.22,0.0004,2]
[408410414,1773574243392,-1000.0,0.0004,120]
[408410415,1773574243401,-152.0,0.00040002,12]
[408410416,1773574243413,-350.0,0.00040066,6]
[408410417,1773574243422,-923.0,0.00040069,2]
[408410418,1773574243433,-164.0,0.0004009,14]
[408410419,1773574243443,-246.1232,0.000401,30]
[408410420,1773574243452,-1404.44,0.000402,14]
[408410421,1773574243462,-1000.0,0.00040274,120]
[408410422,1773574243472,-246.1232,0.000403,30]
[408410423,1773574243481,-246.1232,0.000405,30]
[408410424,1773574243491,-150.0,0.00040521,20]
[408410425,1773574243501,-512.75059119,0.00040521,120]
[408410426,1773574243512,-2500.0,0.00040521,2]
[408410427,1773574243522,-2500.0,0.00040521,2]
[408410428,1773574243532,-3455.0,0.00040522,5]
[408410429,1773574243543,-421830.9302881,0.00040522,2]
[408410430,1773574243553,-13101.7935781,0.00040522,2]
[408410431,1773574243563,-1000.0,0.00040548,120]
[408410432,1773574243573,-172.0,0.00040686,2]
[408410433,1773574243583,-246.1232,0.000407,30]
[408410434,1773574243592,-2400.0,0.000407,14]
[408410435,1773574243601,-1098.27352525,0.00040721,2]
[408410436,1773574243610,-176.80719218,0.00040721,2]
[408410437,1773574243620,-210.44587916,0.00040721,8]
[408410438,1773574243629,-1700.0,0.00040726,14]
[408410439,1773574243639,-2600.0,0.00040726,14]
[408410440,1773574243649,-700.0,0.00040726,14]
[408410441,1773574243658,-230.44110645,0.00040741,2]
[408410442,1773574243669,-651.54591552,0.0004077,3]
[408410443,1773574243679,-272.81263352,0.00040787,2]
[408410444,1773574243689,-7589.0,0.00040795,120]
[408410445,1773574243699,-2000.0,0.000408,2]
[408410446,1773574243708,-200.0,0.000408,10]
[408410447,1773574243717,-3300.0,0.000408,14]
[408410448,1773574243726,-25000.0,0.00040803,15]
[408410449,1773574243736,-25000.0,0.00040812,15]
[408410450,1773574243851,-155.45652414,0.00040818,2]
[408410451,1773574243875,-150.0,0.00040818,2]
[408410452,1773574243885,-150.0,0.00040818,2]
[408410453,1773574243894,-153.16199732,0.00040818,2]
[408410454,1773574243904,-150.0,0.00040818,2]
[408410455,1773574243913,-155.82159694,0.00040818,2]
[408410456,1773574243922,-151.46727953,0.00040818,2]
[408410457,1773574243932,-212.76778111,0.00040818,2]
[408410458,1773574243941,-155.06271841,0.00040818,2]
[408410459,1773574243951,-150.0,0.00040818,2]
[408410460,1773574243959,-191.20135912,0.00040818,2]
[408410461,1773574243968,-500.0,0.00040818,2]
[408410462,1773574243977,-154.43035368,0.00040818,2]
[408410463,1773574243989,-500.0,0.00040818,2]
[408410464,1773574243998,-150.0,0.00040818,2]
[408410465,1773574244009,-151.0,0.00040818,14]
[408410466,1773574244018,-151.0,0.00040818,14]
[408410467,1773574244027,-1489.97049065,0.0004082,2]
[408410468,1773574244036,-1489.97049065,0.0004082,2]
[408410469,1773574244045,-1489.97049065,0.0004082,2]
[408410470,1773574244054,-1489.97049065,0.0004082,2]
[408410471,1773574244063,-1489.97049065,0.0004082,2]
[408410472,1773574244072,-1489.97049065,0.0004082,2]
[408410473,1773574244080,-1489.97049065,0.0004082,2]
[408410474,1773574244090,-1489.97049065,0.0004082,2]
[408410475,1773574244098,-1489.97049064,0.0004082,2]
[408410476,1773574244107,-1489.97049064,0.0004082,2]
[408410477,1773574244116,-1489.97049064,0.0004082,2]
[408410478,1773574244125,-1489.97049064,0.0004082,2]
[408410479,1773574244134,-1489.97049064,0.0004082,2]
[408410480,1773574244143,-1489.97049064,0.0004082,2]
[408410481,1773574244152,-500.0,0.0004082,2]
[408410482,1773574244161,-1445.1719844,0.0004082,2]
[408410483,1773574244170,-25000.0,0.00040821,15]